fUSD/lending_fUSD_20250211
["ID","MTS","AMOUNT","RATE_DAILY","PERIOD"]
[352767489,1739298677644,-500.0,0.00018219,2]
[352767490,1739298677655,-500.0,0.00018219,2]
[352767491,1739298677665,-295.05119299,0.00018219,2]
[352767492,1739298677676,-500.0,0.00018219,2]
[352767493,1739298677686,-319.04171578,0.00018219,2]
[352767494,1739298677696,-500.0,0.00018219,2]
[352767495,1739298677707,-500.0,0.00018219,2]
[352767496,1739298677717,-500.0,0.00018219,2]
[352767497,1739298677728,-544.88,0.00018219,2]
[352767498,1739298677738,-500.0,0.00018219,2]
[352767499,1739298677748,-244.12943224,0.00018219,2]
[352767500,1739298677758,-500.0,0.00018219,2]
[352767501,1739298677768,-587.21,0.00018219,2]
[352767502,1739298677779,-558.41905064,0.00018219,2]
[352767503,1739298677789,-776.68,0.00018219,2]
[352767504,1739298677799,-500.0,0.00018219,2]
[352767505,1739298677809,-500.0,0.00018219,2]
[352767506,1739298677820,-500.0,0.00018219,2]
[352767507,1739298677830,-783.88,0.00018219,2]
[352767508,1739298677840,-500.0,0.00018219,2]
[352767509,1739298677851,-500.0,0.00018219,2]
[352767510,1739298677862,-1508.97,0.00018219,2]
[352767511,1739298677873,-500.0,0.00018219,2]
[352767512,1739298677892,-646.53,0.00018219,2]
[352767513,1739298677909,-500.0,0.00018219,2]
[352767514,1739298677919,-688.16,0.00018219,2]
[352767515,1739298677931,-500.0,0.00018219,2]
[352767516,1739298677943,-500.0,0.00018219,2]
[352767517,1739298677954,-515.55,0.00018219,2]
[352767518,1739298677964,-928.56,0.00018219,2]
[352767519,1739298677974,-607.49,0.00018219,2]
[352767520,1739298677984,-1282.36,0.00018219,2]
[352767521,1739298677995,-500.0,0.00018219,2]
[352767522,1739298678005,-500.0,0.00018219,2]
[352767523,1739298678016,-1647.83,0.00018219,2]
[352767524,1739298678026,-500.0,0.00018219,2]
[352767525,1739298678036,-500.0,0.00018219,2]
[352767526,1739298678047,-500.0,0.00018219,2]
[352767527,1739298678057,-787.18,0.00018219,2]
[352767528,1739298678068,-503.84,0.00018219,2]
[352767529,1739298678079,-500.0,0.00018219,2]
[352767530,1739298678094,-564.67,0.00018219,2]
[352767531,1739298678106,-802.86,0.00018219,2]
[352767532,1739298678117,-809.1,0.00018219,2]
[352767533,1739298678127,-525.12675868,0.00018219,2]
[352767534,1739298678140,-589.09,0.00018219,2]
[352767535,1739298678150,-500.0,0.00018219,2]
[352767536,1739298678160,-621.49,0.00018219,2]
[352767537,1739298678171,-500.0,0.00018219,2]
[352767538,1739298678182,-500.0,0.00018219,2]
[352767539,1739298678194,-669.22,0.00018219,2]
[352767540,1739298678204,-500.0,0.00018219,2]
[352767541,1739298678215,-500.0,0.00018219,2]
[352767542,1739298678231,-500.0,0.00018219,2]
[352767543,1739298678243,-750.57,0.00018219,2]
[352767544,1739298678254,-828.95,0.00018219,2]
[352767545,1739298678266,-773.6,0.00018219,2]
[352767546,1739298678470,-500.0,0.00018219,2]
[352767547,1739298678482,-522.31,0.00018219,2]
[352767548,1739298678497,-500.0,0.00018219,2]
[352767549,1739298678508,-1142.31,0.00018219,2]
[352767550,1739298678518,-500.0,0.00018219,2]
[352767551,1739298678528,-511.15,0.00018219,2]
[352767552,1739298678539,-500.0,0.00018219,2]
[352767553,1739298678550,-735.1,0.00018219,2]
[352767554,1739298678561,-500.0,0.00018219,2]
[352767555,1739298678571,-700.83,0.00018219,2]
[352767556,1739298678581,-574.37,0.00018219,2]
[352767557,1739298678592,-500.0,0.00018219,2]
[352767558,1739298678603,-500.0,0.00018219,2]
[352767559,1739298678612,-573.07,0.00018219,2]
[352767560,1739298678626,-1091.51,0.00018219,2]
[352767561,1739298678638,-500.0,0.00018219,2]
[352767562,1739298678649,-609.52,0.00018219,2]
[352767563,1739298678659,-542.89,0.00018219,2]
[352767564,1739298678669,-500.0,0.00018219,2]
[352767565,1739298678679,-867.18,0.00018219,2]
[352767566,1739298678689,-515.33,0.00018219,2]
[352767567,1739298678700,-571.89,0.00018219,2]
[352767568,1739298678711,-500.0,0.00018219,2]
[352767569,1739298678722,-695.7,0.00018219,2]
[352767570,1739298678732,-833.39,0.00018219,2]
[352767571,1739298678743,-549.21,0.00018219,2]
[352767572,1739298678753,-1540.74,0.00018219,2]
[352767573,1739298678764,-500.0,0.00018219,2]
[352767574,1739298678775,-528.06,0.00018219,2]
[352767575,1739298678787,-691.14,0.00018219,2]
[352767576,1739298678798,-564.72,0.00018219,2]
[352767577,1739298678809,-500.0,0.00018219,2]
[352767578,1739298678820,-692.89,0.00018219,2]
[352767579,1739298678830,-500.0,0.00018219,2]
[352767580,1739298678840,-557.98,0.00018219,2]
[352767581,1739298678851,-710.61,0.00018219,2]
[352767582,1739298678861,-500.0,0.00018219,2]
[352767583,1739298678873,-761.56,0.00018219,2]
[352767584,1739298678888,-500.0,0.00018219,2]
[352767585,1739298678898,-613.13,0.00018219,2]
[352767586,1739298678908,-500.0,0.00018219,2]
[352767587,1739298678919,-505.36,0.00018219,2]
[352767588,1739298678929,-595.39,0.00018219,2]
[352767589,1739298678939,-176.66268467,0.00018219,2]
[352767590,1739298678949,-500.0,0.00018219,2]
[352767591,1739298678963,-1359.95,0.00018219,2]
[352767592,1739298678974,-500.0,0.00018219,2]
[352767593,1739298678985,-902.85,0.00018219,2]
[352767594,1739298678997,-500.0,0.00018231,2]
[352767595,1739298679007,-1039.5550579,0.0001828,5]
[352767596,1739298679018,-813.4551445,0.00018286,2]
[352767597,1739298679029,-3402.1836111,0.00018287,2]
[352767598,1739298679039,-365.74231936,0.0001829,2]
[352767599,1739298679049,-500.0,0.00018292,2]
[352767600,1739298679059,-700.0,0.00018292,2]
[352767601,1739298679068,-518.68,0.00018299,2]
[352767602,1739298679078,-500097.075038,0.000183,2]
[352767603,1739298679088,-500.0,0.00018302,2]
[352767604,1739298679098,-500.0,0.00018355,2]
[352767605,1739298679108,-469.902416,0.00018356,2]
[352767606,1739298679119,-549.183022,0.00018356,2]
[352767607,1739298679132,-500.0,0.00018356,2]
[352767608,1739298679142,-522.08006249,0.00018356,2]
[352767609,1739298679153,-722.82,0.00018356,2]
[352767610,1739298679163,-788.18,0.00018356,2]
[352767611,1739298679173,-779.81,0.00018356,2]
[352767612,1739298679184,-357.63779029,0.00018356,2]
[352767613,1739298679195,-539.51242144,0.00018356,2]
[352767614,1739298679205,-500.0,0.00018356,2]
[352767615,1739298679215,-553.98,0.00018356,2]
[352767616,1739298679226,-500.0,0.00018356,2]
[352767617,1739298679236,-2296.07,0.00018356,2]
[352767618,1739298679246,-500.0,0.00018356,2]
[352767619,1739298679256,-395.52046167,0.00018356,2]
[352767620,1739298679266,-619.89,0.00018356,2]
[352767621,1739298679277,-2433.72,0.00018356,2]
[352767622,1739298679287,-500.0,0.00018356,2]
[352767623,1739298679297,-500.0,0.00018356,2]
[352767624,1739298679307,-500.0,0.00018356,2]
[352767625,1739298679318,-500.0,0.00018356,2]
[352767626,1739298679328,-500.0,0.00018356,2]
[352767627,1739298679338,-431.90290902,0.00018356,2]
[352767628,1739298679348,-500.0,0.00018356,2]
[352767629,1739298679357,-500.0,0.00018356,2]
[352767630,1739298679367,-544.88,0.00018356,2]
[352767631,1739298679377,-623.0840893,0.00018356,2]
[352767632,1739298679389,-500.0,0.00018356,2]
[352767633,1739298679400,-587.21,0.00018356,2]
[352767634,1739298679410,-776.68,0.00018356,2]
[352767635,1739298679420,-500.0,0.00018356,2]
[352767636,1739298679431,-500.0,0.00018356,2]
[352767637,1739298679440,-500.0,0.00018356,2]
[352767638,1739298679450,-783.88,0.00018356,2]
[352767639,1739298679460,-500.0,0.00018356,2]
[352767640,1739298679471,-500.0,0.00018356,2]
[352767641,1739298679481,-1508.97,0.00018356,2]
[352767642,1739298679491,-500.0,0.00018356,2]
[352767643,1739298679501,-646.53,0.00018356,2]
[352767644,1739298679511,-500.0,0.00018356,2]
[352767645,1739298679522,-688.16,0.00018356,2]
[352767646,1739298679532,-226.32731609,0.00018356,2]
[352767647,1739298679543,-500.0,0.00018356,2]
[352767648,1739298679553,-515.55,0.00018356,2]
[352767649,1739298679564,-928.56,0.00018356,2]
[352767650,1739298679574,-607.49,0.00018356,2]
[352767651,1739298679584,-1282.36,0.00018356,2]
[352767652,1739298679594,-500.0,0.00018356,2]
[352767653,1739298679604,-500.0,0.00018356,2]
[352767654,1739298679614,-1647.83,0.00018356,2]
[352767655,1739298679623,-500.0,0.00018356,2]
[352767656,1739298679635,-500.0,0.00018356,2]
[352767657,1739298679645,-500.0,0.00018356,2]
[352767658,1739298679655,-787.18,0.00018356,2]
[352767659,1739298679666,-503.84,0.00018356,2]
[352767660,1739298679677,-500.0,0.00018356,2]
[352767661,1739298679686,-564.67,0.00018356,2]
[352767662,1739298679697,-802.86,0.00018356,2]
[352767663,1739298679708,-809.1,0.00018356,2]
[352767664,1739298679720,-589.09,0.00018356,2]
[352767665,1739298679729,-500.0,0.00018356,2]
[352767666,1739298679740,-621.49,0.00018356,2]
[352767667,1739298679750,-500.0,0.00018356,2]
[352767668,1739298679760,-500.0,0.00018356,2]
[352767669,1739298679770,-669.22,0.00018356,2]
[352767670,1739298679779,-500.0,0.00018356,2]
[352767671,1739298679789,-500.0,0.00018356,2]
[352767672,1739298679799,-500.0,0.00018356,2]
[352767673,1739298679809,-750.57,0.00018356,2]
[352767674,1739298679819,-828.95,0.00018356,2]
[352767675,1739298679829,-773.6,0.00018356,2]
[352767676,1739298679838,-599.00599914,0.00018356,2]
[352767677,1739298679849,-522.31,0.00018356,2]
[352767678,1739298679858,-500.0,0.00018356,2]
[352767679,1739298679869,-1142.31,0.00018356,2]
[352767680,1739298679882,-500.0,0.00018356,2]
[352767681,1739298679893,-511.15,0.00018356,2]
[352767682,1739298679903,-500.0,0.00018356,2]
[352767683,1739298679913,-735.1,0.00018356,2]
[352767684,1739298679923,-500.0,0.00018356,2]
[352767685,1739298679934,-700.83,0.00018356,2]
[352767686,1739298679943,-574.37,0.00018356,2]
[352767687,1739298679954,-500.0,0.00018356,2]
[352767688,1739298679965,-500.0,0.00018356,2]
[352767689,1739298679977,-573.07,0.00018356,2]
[352767690,1739298679987,-1091.51,0.00018356,2]
[352767691,1739298679997,-500.0,0.00018356,2]
[352767692,1739298680007,-609.52,0.00018356,2]
[352767693,1739298680016,-542.89,0.00018356,2]
[352767694,1739298680026,-500.0,0.00018356,2]
[352767695,1739298680036,-867.18,0.00018356,2]
[352767696,1739298680047,-515.33,0.00018356,2]
[352767697,1739298680057,-571.89,0.00018356,2]
[352767698,1739298680068,-500.0,0.00018356,2]
[352767699,1739298680078,-695.7,0.00018356,2]
[352767700,1739298680088,-833.39,0.00018356,2]
[352767701,1739298680098,-549.21,0.00018356,2]
[352767702,1739298680108,-1540.74,0.00018356,2]
[352767703,1739298680119,-500.0,0.00018356,2]
[352767704,1739298680130,-528.06,0.00018356,2]
[352767705,1739298680141,-691.14,0.00018356,2]
[352767706,1739298680152,-564.72,0.00018356,2]
[352767707,1739298680162,-500.0,0.00018356,2]
[352767708,1739298680172,-692.89,0.00018356,2]
[352767709,1739298680182,-500.0,0.00018356,2]
[352767710,1739298680192,-557.98,0.00018356,2]
[352767711,1739298680202,-710.61,0.00018356,2]
[352767712,1739298680212,-210.11821795,0.00018356,2]
[352767713,1739298680223,-761.56,0.00018356,2]
[352767714,1739298680233,-500.0,0.00018356,2]
[352767715,1739298680243,-613.13,0.00018356,2]
[352767716,1739298680253,-500.0,0.00018356,2]
[352767717,1739298680262,-505.36,0.00018356,2]
[352767718,1739298680272,-595.39,0.00018356,2]
[352767719,1739298680282,-500.0,0.00018356,2]
[352767720,1739298680292,-500.0,0.00018356,2]
[352767721,1739298680301,-1359.95,0.00018356,2]
[352767722,1739298680311,-902.85,0.00018356,2]
[352767723,1739298680321,-1039.5550579,0.00018357,6]
[352767724,1739298680331,-300.0,0.0001836,2]
[352767725,1739298680341,-464.13427784,0.000184,2]
[352767726,1739298680350,-500.0,0.00018402,2]
[352767727,1739298680359,-11881.59,0.00018428,7]
[352767728,1739298680369,-11881.59,0.00018428,7]
[352767729,1739298680379,-1039.5550579,0.00018435,6]
[352767730,1739298680390,-20960.46174376,0.0001844,2]
[352767731,1739298680400,-568.49832981,0.00018473,2]
[352767732,1739298680410,-3044.3485798,0.00018487,2]
[352767733,1739298680420,-263.27699,0.00018488,7]
[352767734,1739298680430,-500.0,0.00018492,2]
[352767735,1739298680439,-469.902416,0.00018493,2]
[352767736,1739298680448,-549.183022,0.00018493,2]
[352767737,1739298680458,-500.0,0.00018493,2]
[352767738,1739298680467,-722.82,0.00018493,2]
[352767739,1739298680476,-788.18,0.00018493,2]
[352767740,1739298680486,-779.81,0.00018493,2]
[352767741,1739298680496,-500.0,0.00018493,2]
[352767742,1739298680506,-553.98,0.00018493,2]
[352767743,1739298680515,-500.0,0.00018493,2]
[352767744,1739298680525,-2296.07,0.00018493,2]
[352767745,1739298680535,-500.0,0.00018493,2]
[352767746,1739298680544,-619.89,0.00018493,2]
[352767747,1739298680554,-2433.72,0.00018493,2]
[352767748,1739298680564,-500.0,0.00018493,2]
[352767749,1739298680573,-500.0,0.00018493,2]
[352767750,1739298680583,-500.0,0.00018493,2]
[352767751,1739298680592,-500.0,0.00018493,2]
[352767752,1739298680602,-455.69,0.00018493,2]
[352767753,1739298680612,-500.0,0.00018493,2]
[352767754,1739298680622,-500.0,0.00018493,2]
[352767755,1739298680633,-544.88,0.00018493,2]
[352767756,1739298680643,-270.11976258,0.00018493,2]
[352767757,1739298680652,-587.21,0.00018493,2]
[352767758,1739298680663,-776.68,0.00018493,2]
[352767759,1739298680672,-500.0,0.00018493,2]
[352767760,1739298680681,-500.0,0.00018493,2]
[352767761,1739298680691,-500.0,0.00018493,2]
[352767762,1739298680700,-783.88,0.00018493,2]
[352767763,1739298680711,-500.0,0.00018493,2]
[352767764,1739298680721,-500.0,0.00018493,2]
[352767765,1739298680730,-1508.97,0.00018493,2]
[352767766,1739298680740,-500.0,0.00018493,2]
[352767767,1739298680750,-646.53,0.00018493,2]
[352767768,1739298680760,-500.0,0.00018493,2]
[352767769,1739298680769,-688.16,0.00018493,2]
[352767770,1739298680779,-500.0,0.00018493,2]
[352767771,1739298680788,-515.55,0.00018493,2]
[352767772,1739298680798,-928.56,0.00018493,2]
[352767773,1739298680808,-607.49,0.00018493,2]
[352767774,1739298680817,-1282.36,0.00018493,2]
[352767775,1739298680827,-500.0,0.00018493,2]
[352767776,1739298680837,-500.0,0.00018493,2]
[352767777,1739298680847,-1647.83,0.00018493,2]
[352767778,1739298680856,-500.0,0.00018493,2]
[352767779,1739298680866,-584.95967577,0.00018493,2]
[352767780,1739298680876,-627.7877515,0.00018493,2]
[352767781,1739298680890,-787.18,0.00018493,2]
[352767782,1739298680948,-503.84,0.00018493,2]
[352767783,1739298680959,-500.0,0.00018493,2]
[352767784,1739298680968,-564.67,0.00018493,2]
[352767785,1739298680978,-802.86,0.00018493,2]
[352767786,1739298680987,-809.1,0.00018493,2]
[352767787,1739298680996,-589.09,0.00018493,2]
[352767788,1739298681005,-500.0,0.00018493,2]
[352767789,1739298681015,-621.49,0.00018493,2]
[352767790,1739298681024,-500.0,0.00018493,2]
[352767791,1739298681033,-500.0,0.00018493,2]
[352767792,1739298681042,-669.22,0.00018493,2]
[352767793,1739298681052,-500.0,0.00018493,2]
[352767794,1739298681061,-500.0,0.00018493,2]
[352767795,1739298681071,-500.0,0.00018493,2]
[352767796,1739298681080,-750.57,0.00018493,2]
[352767797,1739298681089,-828.95,0.00018493,2]
[352767798,1739298681098,-773.6,0.00018493,2]
[352767799,1739298681107,-522.31,0.00018493,2]
[352767800,1739298681118,-597.52694765,0.00018493,2]
[352767801,1739298681127,-1142.31,0.00018493,2]
[352767802,1739298681138,-500.0,0.00018493,2]
[352767803,1739298681148,-511.15,0.00018493,2]
[352767804,1739298681157,-500.0,0.00018493,2]
[352767805,1739298681167,-735.1,0.00018493,2]
[352767806,1739298681176,-500.0,0.00018493,2]
[352767807,1739298681186,-700.83,0.00018493,2]
[352767808,1739298681196,-574.37,0.00018493,2]
[352767809,1739298681205,-500.0,0.00018493,2]
[352767810,1739298681215,-500.0,0.00018493,2]
[352767811,1739298681224,-573.07,0.00018493,2]
[352767812,1739298681233,-1091.51,0.00018493,2]
[352767813,1739298681242,-500.0,0.00018493,2]
[352767814,1739298681253,-609.52,0.00018493,2]
[352767815,1739298681262,-542.89,0.00018493,2]
[352767816,1739298681271,-500.0,0.00018493,2]
[352767817,1739298681280,-867.18,0.00018493,2]
[352767818,1739298681290,-515.33,0.00018493,2]
[352767819,1739298681299,-571.89,0.00018493,2]
[352767820,1739298681309,-500.0,0.00018493,2]
[352767821,1739298681319,-695.7,0.00018493,2]
[352767822,1739298681328,-833.39,0.00018493,2]
[352767823,1739298681337,-549.21,0.00018493,2]
[352767824,1739298681347,-1540.74,0.00018493,2]
[352767825,1739298681356,-500.0,0.00018493,2]
[352767826,1739298681366,-528.06,0.00018493,2]
[352767827,1739298681375,-691.14,0.00018493,2]
[352767828,1739298681389,-564.72,0.00018493,2]
[352767829,1739298681399,-500.0,0.00018493,2]
[352767830,1739298681408,-692.89,0.00018493,2]
[352767831,1739298681417,-500.0,0.00018493,2]
[352767832,1739298681426,-557.98,0.00018493,2]
[352767833,1739298681436,-710.61,0.00018493,2]
[352767834,1739298681446,-761.56,0.00018493,2]
[352767835,1739298681456,-500.0,0.00018493,2]
[352767836,1739298681466,-613.13,0.00018493,2]
[352767837,1739298681476,-500.0,0.00018493,2]
[352767838,1739298681486,-505.36,0.00018493,2]
[352767839,1739298681495,-595.39,0.00018493,2]
[352767840,1739298681505,-500.0,0.00018493,2]
[352767841,1739298681514,-500.0,0.00018493,2]
[352767842,1739298681524,-1359.95,0.00018493,2]
[352767843,1739298681534,-902.85,0.00018493,2]
[352767844,1739298681543,-936162.71542902,0.000185,3]
[352767845,1739298681554,-131532.94124093,0.000185,3]
[352767846,1739298681564,-1495.23135628,0.000185,3]
[352767847,1739298681575,-2601.38504457,0.000185,3]
[352767848,1739298681586,-32904.21049931,0.000185,3]
[352767849,1739298681596,-169570.13783589,0.000185,3]
[352767850,1739298681607,-6936.2074629,0.000185,2]
[352767851,1739298681618,-53468.33270429,0.000185,3]
[352767852,1739298681627,-500.0,0.00018502,2]
[352767853,1739298681642,-1039.5550579,0.00018512,6]
[352767854,1739298681652,-365.74231936,0.0001852,2]
[352767855,1739298681663,-63538.23174992,0.0001853,5]
[352767856,1739298681672,-677526.0,0.0001853,10]
[352767857,1739298681682,-500294.0,0.0001855,5]
[352767858,1739298681691,-192.98467062,0.00018584,2]
[352767859,1739298681701,-1039.5550579,0.0001859,6]
[352767860,1739298681710,-154.54,0.000186,2]
[352767861,1739298681720,-154.54,0.000186,2]
[352767862,1739298681730,-500.0,0.00018602,2]
[352767863,1739298681740,-500.0,0.00018629,2]
[352767864,1739298681750,-469.902416,0.0001863,2]
[352767865,1739298681759,-549.183022,0.0001863,2]
[352767866,1739298681769,-230.5370232,0.0001863,2]
[352767867,1739298681779,-722.82,0.0001863,2]
[352767868,1739298681790,-788.18,0.0001863,2]
[352767869,1739298681800,-779.81,0.0001863,2]
[352767870,1739298681810,-500.0,0.0001863,2]
[352767871,1739298681821,-553.98,0.0001863,2]
[352767872,1739298681832,-500.0,0.0001863,2]
[352767873,1739298681842,-2296.07,0.0001863,2]
[352767874,1739298681851,-500.0,0.0001863,2]
[352767875,1739298681861,-619.89,0.0001863,2]
[352767876,1739298681872,-2433.72,0.0001863,2]
[352767877,1739298681889,-500.0,0.0001863,2]
[352767878,1739298681900,-500.0,0.0001863,2]
[352767879,1739298681909,-500.0,0.0001863,2]
[352767880,1739298681921,-500.0,0.0001863,2]
[352767881,1739298681932,-500.0,0.0001863,2]
[352767882,1739298681941,-500.0,0.0001863,2]
[352767883,1739298681951,-544.88,0.0001863,2]
[352767884,1739298681962,-587.21,0.0001863,2]
[352767885,1739298681972,-776.68,0.0001863,2]
[352767886,1739298681981,-500.0,0.0001863,2]
[352767887,1739298681991,-500.0,0.0001863,2]
[352767888,1739298682000,-500.0,0.0001863,2]
[352767889,1739298682010,-783.88,0.0001863,2]
[352767890,1739298682020,-339.84,0.0001863,2]
[352767891,1739298682029,-500.0,0.0001863,2]
[352767892,1739298682039,-1508.97,0.0001863,2]
[352767893,1739298682048,-587.58442743,0.0001863,2]
[352767894,1739298682058,-646.53,0.0001863,2]
[352767895,1739298682068,-500.0,0.0001863,2]
[352767896,1739298682077,-688.16,0.0001863,2]
[352767897,1739298682087,-500.0,0.0001863,2]
[352767898,1739298682096,-515.55,0.0001863,2]
[352767899,1739298682105,-928.56,0.0001863,2]
[352767900,1739298682114,-607.49,0.0001863,2]
[352767901,1739298682123,-1282.36,0.0001863,2]
[352767902,1739298682137,-500.0,0.0001863,2]
[352767903,1739298682146,-500.0,0.0001863,2]
[352767904,1739298682155,-1647.83,0.0001863,2]
[352767905,1739298682164,-500.0,0.0001863,2]
[352767906,1739298682174,-787.18,0.0001863,2]
[352767907,1739298682184,-503.84,0.0001863,2]
[352767908,1739298682194,-636.53045844,0.0001863,2]
[352767909,1739298682204,-564.67,0.0001863,2]
[352767910,1739298682214,-802.86,0.0001863,2]
[352767911,1739298682223,-809.1,0.0001863,2]
[352767912,1739298682233,-589.09,0.0001863,2]
[352767913,1739298682243,-500.0,0.0001863,2]
[352767914,1739298682252,-621.49,0.0001863,2]
[352767915,1739298682262,-500.0,0.0001863,2]
[352767916,1739298682271,-500.0,0.0001863,2]
[352767917,1739298682281,-669.22,0.0001863,2]
[352767918,1739298682291,-500.0,0.0001863,2]
[352767919,1739298682300,-500.0,0.0001863,2]
[352767920,1739298682310,-500.0,0.0001863,2]
[352767921,1739298682319,-750.57,0.0001863,2]
[352767922,1739298682328,-828.95,0.0001863,2]
[352767923,1739298682337,-773.6,0.0001863,2]
[352767924,1739298682347,-522.31,0.0001863,2]
[352767925,1739298682357,-1142.31,0.0001863,2]
[352767926,1739298682366,-500.0,0.0001863,2]
[352767927,1739298682376,-511.15,0.0001863,2]
[352767928,1739298682388,-444.89116721,0.0001863,2]
[352767929,1739298682398,-735.1,0.0001863,2]
[352767930,1739298682407,-500.0,0.0001863,2]
[352767931,1739298682417,-700.83,0.0001863,2]
[352767932,1739298682426,-574.37,0.0001863,2]
[352767933,1739298682435,-500.0,0.0001863,2]
[352767934,1739298682444,-500.0,0.0001863,2]
[352767935,1739298682454,-573.07,0.0001863,2]
[352767936,1739298682464,-1091.51,0.0001863,2]
[352767937,1739298682473,-500.0,0.0001863,2]
[352767938,1739298682484,-609.52,0.0001863,2]
[352767939,1739298682493,-542.89,0.0001863,2]
[352767940,1739298682503,-500.0,0.0001863,2]
[352767941,1739298682512,-867.18,0.0001863,2]
[352767942,1739298682522,-515.33,0.0001863,2]
[352767943,1739298682532,-571.89,0.0001863,2]
[352767944,1739298682541,-500.0,0.0001863,2]
[352767945,1739298682551,-695.7,0.0001863,2]
[352767946,1739298682560,-833.39,0.0001863,2]
[352767947,1739298682569,-549.21,0.0001863,2]
[352767948,1739298682579,-1540.74,0.0001863,2]
[352767949,1739298682588,-500.0,0.0001863,2]
[352767950,1739298682598,-528.06,0.0001863,2]
[352767951,1739298682608,-691.14,0.0001863,2]
[352767952,1739298682618,-564.72,0.0001863,2]
[352767953,1739298682627,-499.83827346,0.0001863,2]
[352767954,1739298682640,-692.89,0.0001863,2]
[352767955,1739298682652,-500.0,0.0001863,2]
[352767956,1739298682662,-557.98,0.0001863,2]
[352767957,1739298682671,-710.61,0.0001863,2]
[352767958,1739298682681,-761.56,0.0001863,2]
[352767959,1739298682692,-500.0,0.0001863,2]
[352767960,1739298682702,-613.13,0.0001863,2]
[352767961,1739298682712,-500.08267144,0.0001863,2]
[352767962,1739298682722,-505.36,0.0001863,2]
[352767963,1739298682731,-595.39,0.0001863,2]
[352767964,1739298682740,-500.0,0.0001863,2]
[352767965,1739298682750,-1359.95,0.0001863,2]
[352767966,1739298682760,-500.0,0.0001863,2]
[352767967,1739298682769,-1039.5550579,0.00018667,6]
[352767968,1739298682779,-263.27699,0.00018688,7]
[352767969,1739298682788,-2911.41787,0.0001869,2]
[352767970,1739298682798,-300.0,0.000187,6]
[352767971,1739298682808,-179.33869203,0.000187,2]
[352767972,1739298682817,-20092.78848347,0.000187,6]
[352767973,1739298682827,-500.0,0.00018702,2]
[352767974,1739298682837,-11881.59,0.00018702,7]
[352767975,1739298682846,-11881.59,0.00018702,7]
[352767976,1739298682856,-1039.5550579,0.00018745,6]
[352767977,1739298682866,-2000.0,0.00018751,2]
[352767978,1739298682877,-2686.5135485,0.00018754,2]
[352767979,1739298682892,-500.0,0.00018766,2]
[352767980,1739298682902,-469.902416,0.00018767,2]
[352767981,1739298682912,-549.183022,0.00018767,2]
[352767982,1739298682922,-722.82,0.00018767,2]
[352767983,1739298682932,-788.18,0.00018767,2]
[352767984,1739298682943,-779.81,0.00018767,2]
[352767985,1739298682953,-500.0,0.00018767,2]
[352767986,1739298682963,-553.98,0.00018767,2]
[352767987,1739298682973,-500.0,0.00018767,2]
[352767988,1739298682983,-2296.07,0.00018767,2]